Cogmind - Beta 15 @@@ ROGUE MODE // 2025.05.26 @ 05:22:06 Player: BVrutally Odd Result: Destroyed by P-80 Master with Gamma Rifle Performance ------------- Evolutions (9) 4500 Regions Visited (26) 5200 Robots Destroyed (75) 375 Value Destroyed (2459) 2459 Prototype IDs (235) 4700 Alien Tech Used (1) 200 Bonus (6548) 6548 TOTAL SCORE: 23982 Bonus ------- Follower Combat Kills 148 Registered with UFD 300 Met Optimus in HQ 500 Met Data Miner 300 Used Data Conduit 3000 Met Zhirov 300 Met Warlord at Base 500 MAIN.C Attacked Warlord 500 Pursued by Intercept 1000 Cogmind --------- Core Integrity 0/1600 Matter 257/300 Energy 100/100 System Corruption 9% Temperature Cool (0) Movement Core (50) Location -1/Access Parts ------- > --- POWER (2) -------- (None) > --- PROPULSION (8) --- (None) > --- UTILITY (13) ----- (None) > --- WEAPON (2) ------- (None) > --- INVENTORY (5) ---- Transdimensional Reconstructor Peak State ------------ > --- POWER ------------ Micro Fission Core Micro Fission Core > --- PROPULSION ------- Field Propulsion Array Q-thruster Impulse Thruster Array > --- UTILITY ---------- Enhanced Optical Array Improved Sensor Array Improved Signal Interpreter Advanced Terrain Scanner Surveybot 17 Chip Advanced Melee Analysis Suite Experimental Phase Shifter Improved Hacking Suite System Mapper Rainbow Chip > --- WEAPON ----------- Heavy Phase Cannon Power Sword > --- INVENTORY -------- Advanced Reaction Control System Experimental Propulsion Shielding Transdimensional Reconstructor Vortex Driver Vortex Driver [Rating: 130] Favorites ----------- Power Fission Core Engine Backup Power I Power Core Fission Core Reactor Micro Antimatter Reactor Propulsion Improved Treads Treads Improved Treads Hover Unit Cooled Aerolev Unit Flight Unit Cooled VTOL Module Utility Large Storage Unit Device Improved Sensor Array Storage Large Storage Unit Processor Improved Signal Interpreter Hackware System Mapper Protection Medium Reflective Plating Weapon Subdweller Beam Cannon Energy Gun Small Laser Energy Cannon Subdweller Beam Cannon Ballistic Gun Assault Rifle Ballistic Cannon Flak Cannon Launcher Missile Launcher Special Weapon CPS Tube Impact Weapon Mace Slashing Weapon Ripper Piercing Weapon Force Lance Special Melee Weapon Dirty Datajack Build | -11 -10 -10 -8 -8 -6 -6 -6 -6 -5 -5 -5 -5 -5 -5 -5 -4 -4 -4 -4 -4 -4 -4 -3 -3 -2 -1 ------- Run | Yrd Mat Sub Rec Scr Fac Low Low Dat Pro Fac Was Fac Upp Upp War Pro Fac Was Fac Upp Upp Zhi Pro Res Res Acc Slots Evolved 18 | . . . . . 8 . . . . 2 . . . . . . 2 . . . . . . 2 2 2 Power 1 | . . . . . 1 . . . . . . . . . . . . . . . . . . . . . Propulsion 6 | . . . . . 2 . . . . 1 . . . . . . 1 . . . . . . . . 2 Utility 11 | . . . . . 5 . . . . 1 . . . . . . 1 . . . . . . 2 2 . Weapon . | . . . . . . . . . . . . . . . . . . . . . . . . . . . Parts Attached 122 | 7 5 14 2 8 14 1 1 9 3 3 1 2 2 1 9 . 1 . 5 1 . 1 . 9 18 5 Power 16 | 1 . 3 . 2 . 1 . . 1 . . 1 . . 1 . . . 2 . . . . 2 2 . Engine 7 | 1 . 3 . 1 . . . . . . . 1 . . 1 . . . . . . . . . . . Core 7 | . . . . 1 . 1 . . 1 . . . . . . . . . 2 . . . . 1 1 . Reactor 2 | . . . . . . . . . . . . . . . . . . . . . . . . 1 1 . Propulsion 35 | 2 2 2 1 1 4 . . 2 . . 1 1 . 1 2 . . . 3 . . . . 3 9 1 Treads 12 | 2 2 2 1 1 3 . . 1 . . . . . . . . . . . . . . . . . . Leg . | . . . . . . . . . . . . . . . . . . . . . . . . . . . Wheel . | . . . . . . . . . . . . . . . . . . . . . . . . . . . Hover 3 | . . . . . . . . . . . . 1 . 1 1 . . . . . . . . . . . Flight 20 | . . . . . 1 . . 1 . . 1 . . . 1 . . . 3 . . . . 3 9 1 Utility 40 | 2 1 3 . 1 7 . . 6 2 3 . . . . 3 . 1 . . . . 1 . 2 6 2 Device 16 | 1 . 2 . . 3 . . . 1 2 . . . . 2 . . . . . . . . . 3 2 Storage 5 | 1 1 . . . 1 . . 1 . . . . . . . . . . . . . . . . 1 . Processor 9 | . . . . . 1 . . 3 . 1 . . . . . . 1 . . . . 1 . . 2 . Hackware 3 | . . . . . . . . 1 1 . . . . . 1 . . . . . . . . . . . Protection 7 | . . 1 . 1 2 . . 1 . . . . . . . . . . . . . . . 2 . . Artifact . | . . . . . . . . . . . . . . . . . . . . . . . . . . . Weapon 31 | 2 2 6 1 4 3 . 1 1 . . . . 2 . 3 . . . . 1 . . . 2 1 2 Energy Gun 6 | 1 1 2 1 . 1 . . . . . . . . . . . . . . . . . . . . . Energy Cannon 9 | . 1 1 . 1 2 . . . . . . . . . 1 . . . . 1 . . . . 1 1 Ballistic Gun 3 | 1 . . . 2 . . . . . . . . . . . . . . . . . . . . . . Ballistic Cannon 2 | . . . . 1 . . . . . . . . 1 . . . . . . . . . . . . . Launcher 4 | . . 1 . . . . 1 . . . . . . . 1 . . . . . . . . 1 . . Special Weapon 1 | . . . . . . . . 1 . . . . . . . . . . . . . . . . . . Impact Weapon 1 | . . 1 . . . . . . . . . . . . . . . . . . . . . . . . Slashing Weapon 3 | . . 1 . . . . . . . . . . . . 1 . . . . . . . . 1 . . Piercing Weapon 1 | . . . . . . . . . . . . . . . . . . . . . . . . . . 1 Special Melee Weapon 1 | . . . . . . . . . . . . . 1 . . . . . . . . . . . . . Unidentified Prototypes 7 | . . . . . 3 . . 1 . . . . . . 2 . . . . . . 1 . . . . Parts Lost 69 | . . 4 . . . . 1 16 . . . . . . . . 2 . 1 1 . . 6 13 15 10 Power 9 | . . 2 . . . . . 2 . . . . . . . . . . . . . . 1 3 1 . Propulsion 26 | . . 1 . . . . 1 6 . . . . . . . . 1 . . 1 . . 1 3 10 2 Utility 25 | . . 1 . . . . . 5 . . . . . . . . . . 1 . . . 4 5 3 6 Weapon 9 | . . . . . . . . 3 . . . . . . . . 1 . . . . . . 2 1 2 Highest Loss Streak 15 | . . 1 . . . . 1 15 . . . . . . . . 2 . 1 1 . . 5 9 15 9 To Critical Strikes 1 | . . . . . . . . . . . . . . . . . . . . . . . . 1 . . Average Backups 11 | 1 12 10 14 11 16 19 20 22 4 4 4 3 4 4 4 5 5 4 4 4 4 4 5 3 3 2 Power . | . 1 . . . . . . . . 1 1 . . . . . . . . . . . . . . . Propulsion 2 | . 4 2 4 3 1 2 1 2 . . . . . . . . . . . . . . . . 1 . Utility 3 | . 2 2 3 3 6 8 9 10 2 2 2 2 2 3 3 3 3 3 2 2 2 2 2 . . . Weapon 4 | . 3 5 7 5 7 8 8 7 1 1 1 . 1 1 1 2 2 1 2 2 2 2 2 1 . . Tool/Special . | . . . . . . . . . . . . . . . . . . . . . . . . . . . Unused Backups 13 | . 1 3 . 3 . . . 5 . . . . . . . . . . . . . . . . . 1 Power . | . . . . . . . . . . . . . . . . . . . . . . . . . . . Propulsion 2 | . 1 . . 1 . . . . . . . . . . . . . . . . . . . . . . Utility 2 | . . . . . . . . 2 . . . . . . . . . . . . . . . . . . Weapon 8 | . . 3 . 2 . . . 3 . . . . . . . . . . . . . . . . . . Tool/Special 1 | . . . . . . . . . . . . . . . . . . . . . . . . . . 1 Average Slot Usage (%) 90 | . 99 93 100 90 89 99 100 94 50 49 55 72 77 83 98 94 86 79 81 88 84 76 69 62 41 26 Engine 8 | . 14 13 14 8 . . . . . . . 7 11 11 11 11 10 10 5 . . . . . . . Core 3 | . . . . 2 6 12 13 12 . . . . . . . . . . 3 10 10 9 8 . . . Treads 21 | . 28 28 28 28 25 26 26 24 . . . . . . . . . . . . . . . . . . Hover 1 | . . . . . . . . . . . . 4 5 5 14 5 5 5 2 . . . . . . . Flight 2 | . . . . . . . . . 6 5 8 11 11 11 11 17 14 10 16 21 15 14 12 15 8 6 Device 10 | . 14 7 14 8 12 13 13 13 7 7 11 11 11 11 11 11 10 10 10 15 15 13 9 7 7 6 Storage 8 | . 14 7 14 13 6 6 6 5 . . . . . . . . . . . . . . . . 2 . Processor 5 | . . . . . 3 6 6 7 26 23 23 23 23 23 17 17 19 21 21 21 21 21 20 14 16 10 Hackware 2 | . . . . . . . . . 7 11 11 11 11 11 16 17 15 15 13 10 10 9 9 8 . . Protection 6 | . . 6 . 3 18 20 20 16 . . . . . . . . . . . . . . . 4 . . Energy Gun 2 | . 12 5 . . . . . . . . . . . . . . . . . . . . . . . . Energy Cannon 7 | . 1 12 14 6 4 12 12 9 . . . . . . 3 . . 1 . 4 5 . 4 2 . . Ballistic Gun 4 | . 14 . . 8 7 . . . . . . . . . . . . . . . . . . . . . Slashing Weapon 3 | . . 5 13 7 . . . 2 . . . . . . 4 5 5 5 5 5 5 4 4 4 3 . Peak Build Rating 130 | 7 10 18 18 27 50 56 58 61 47 51 56 66 71 77 109 109 108 106 122 124 116 130 130 116 91 66 Average Rating 37 | 5 9 13 17 18 45 55 56 56 43 48 53 62 66 72 97 103 106 99 109 123 116 114 112 97 68 46 On Entrance 63 | . 7 10 18 17 27 49 56 58 42 46 49 56 63 71 77 109 103 98 98 122 116 116 130 77 58 33 Naked Turns 11 | . . . . . . . . . . . . . . . . . . . . . . . . . . 11 Heaviest Build 132 | 14 31 37 37 51 120 132 132 132 2 5 2 8 5 17 31 24 23 33 19 27 27 27 27 31 28 9 Greatest Support 96 | 40 46 46 43 46 89 86 86 96 5 5 5 13 5 5 33 28 28 21 47 47 39 39 39 47 32 16 Greatest Overweight (x) 3 | . . . . 1 1 1 1 2 . . . . . 3 1 . . 1 . . . . . . 3 . Average Overweight (x) . | . . . . . . 1 1 . . . . . . . . . . . . . . . . . . . Largest Inventory Capacity 25 | 8 15 15 15 15 25 25 25 25 5 5 5 5 5 5 5 5 5 5 5 5 5 5 5 5 10 5 Average Capacity 13 | 7 14 10 15 14 23 25 25 23 5 5 5 5 5 5 5 5 5 5 5 5 5 5 5 5 8 5 Most Carried 25 | 3 15 15 15 15 19 21 25 25 5 5 4 5 5 5 5 5 5 5 5 4 4 5 5 5 4 3 Average Carried 12 | 1 12 10 15 12 16 20 21 23 4 4 4 3 4 4 4 5 5 4 4 4 4 4 5 3 3 2 Final Capacity 25 | 8 15 15 15 15 25 25 25 5 5 5 5 5 5 5 5 5 5 5 5 5 5 5 5 5 5 5 Final Carried 25 | 3 15 15 15 14 19 21 25 5 5 4 4 3 5 5 5 5 5 5 4 4 4 5 5 4 4 1 Class Distribution -------------------- 79% | Mutant 17% | Hacker-Scout Dominant Class ---------------- Mutant | -10/Materials Mutant | -10/Subcaves Mutant | -8/Recycling Mutant | -8/Scraptown Mutant | -6/Factory Mutant | -6/Lower Caves Mutant | -6/Lower Caves Mutant | -6/Data Miner Hacker-Scout | -5/Proximity Caves Hacker-Scout | -5/Factory Hacker-Scout | -5/Waste Hacker-Scout | -5/Factory Hacker-Scout | -5/Upper Caves Hacker-Scout | -5/Upper Caves Hacker-Scout | -5/Warlord Hacker-Scout | -4/Proximity Caves Hacker-Scout | -4/Factory Hacker-Scout | -4/Waste Hacker-Scout | -4/Factory Hacker-Scout | -4/Upper Caves Hacker-Scout | -4/Upper Caves Hacker-Scout | -4/Zhirov Hacker-Scout | -3/Proximity Caves Hacker-Scout | -3/Research Scout | -2/Research Scout | -1/Access Resources | -11 -10 -10 -8 -8 -6 -6 -6 -6 -5 -5 -5 -5 -5 -5 -5 -4 -4 -4 -4 -4 -4 -4 -3 -3 -2 -1 ----------- Run | Yrd Mat Sub Rec Scr Fac Low Low Dat Pro Fac Was Fac Upp Upp War Pro Fac Was Fac Upp Upp Zhi Pro Res Res Acc Matter Collected 2335 | 285 164 343 58 55 47 248 64 22 149 . 40 56 60 128 143 . . . 96 71 . . . 131 162 13 Remotely . | . . . . . . . . . . . . . . . . . . . . . . . . . . . Salvage Created 3819 | 163 528 766 464 26 71 331 56 22 130 . . . . 27 . . . 560 96 65 . . . 119 395 . Parts 205 | 16 35 45 27 4 3 19 1 3 1 . . . . . . . . 3 . 2 . . . 15 31 . Haulers Intercepted 3 | . 2 . . . . . . . . . . . . . . . . . 1 . . . . . . . Recyclers Shooed 1 | . . . . . . . . . . . . . . . . . . . . . . . . . 1 . Parts Field Recycled . | . . . . . . . . . . . . . . . . . . . . . . . . . . . Retrieved Matter . | . . . . . . . . . . . . . . . . . . . . . . . . . . . Parts Self-Destructed 11 | . . 1 . . . 7 1 . 1 . . . . 1 . . . . . . . . . . . . Prevented 12 | . . . . . . 12 . . . . . . . . . . . . . . . . . . . . Kills | -11 -10 -10 -8 -8 -6 -6 -6 -6 -5 -5 -5 -5 -5 -5 -5 -4 -4 -4 -4 -4 -4 -4 -3 -3 -2 -1 ------- Run | Yrd Mat Sub Rec Scr Fac Low Low Dat Pro Fac Was Fac Upp Upp War Pro Fac Was Fac Upp Upp Zhi Pro Res Res Acc Combat Hostiles Destroyed 52 | . 12 16 3 1 1 4 3 . . . . . . . . . . 2 . . . . . 2 8 . Melee 5 | . . . . 1 . . . . . . . . . . . . . . . . . . . 1 3 . Guns 15 | . 12 3 . . . . . . . . . . . . . . . . . . . . . . . . Cannons 30 | . . 13 3 . 1 4 1 . . . . . . . . . . 2 . . . . . 1 5 . AOE 2 | . . . . . . . 2 . . . . . . . . . . . . . . . . . . . Classes Destroyed 18 | 2 6 2 1 1 1 1 . . . . . . . . . . . 1 . 1 . . . 2 . . Worker 3 | . 2 . . . . . . . . . . . . . . . . . . . . . . 1 . . Builder 3 | . . . . . . . . . . . . . . . . . . . . . . . . 2 1 . Tunneler 4 | 4 . . . . . . . . . . . . . . . . . . . . . . . . . . Hauler 3 | . 2 . . . . . . . . . . . . . . . . . 1 . . . . . . . Recycler 6 | 1 . . 4 . . . . . . . . . . . . . . . . . . . . . 1 . Operator 2 | . 1 . . . 1 . . . . . . . . . . . . . . . . . . . . . Watcher 1 | . 1 . . . . . . . . . . . . . . . . . . . . . . . . . Swarmer 9 | . 6 . . . . . 3 . . . . . . . . . . . . . . . . . . . Cutter 8 | . . . . . . . . . . . . . . . . . . . . . . . . 2 6 . Grunt 6 | . 6 . . . . . . . . . . . . . . . . . . . . . . . . . Sentry 3 | . . . 3 . . . . . . . . . . . . . . . . . . . . . . . Hunter 4 | . . . . . . 4 . . . . . . . . . . . . . . . . . . . . Programmer 1 | . . . . . 1 . . . . . . . . . . . . . . . . . . . . . Compactor 2 | . . . . . . . . . . . . . . . . . . 2 . . . . . . . . Tracker 2 | . . . . . . . . . . . . . . . . . . . . . . . . . 2 . Artisan 1 | . . 1 . . . . . . . . . . . . . . . . . . . . . . . . Subdweller 16 | . . 16 . . . . . . . . . . . . . . . . . . . . . . . . Ranger 1 | . . . . 1 . . . . . . . . . . . . . . . . . . . . . . Decomposer 7 | . . . . . . . 2 . . . . . . 3 . . . . . 2 . . . . . . Samaritan 1 | . . . . . . . . . . . . . . . . . . . . 1 . . . . . . Best Kill Streak 6 | 5 3 2 4 1 1 2 3 1 . . . . . . . . . 2 1 . . . . 3 6 . Combat Bots Only 6 | . 3 2 2 1 1 2 3 . . . . . . . . . . 2 . . . . . 2 6 . Max Kills in Single Turn 3 | 1 2 1 1 1 1 1 1 1 . . . . . 1 . . . 2 1 1 . . . 3 1 . Gunslinging 1 | . 1 . . . . . . . . . . . . . . . . . . . . . . . . . Exploded 1 | . . . . . . . 1 . . . . . . . . . . . . . . . . . . . Melee 1 | . . . . 1 . . . . . . . . . . . . . . . . . . . 1 1 . Uniques/NPCs Destroyed 1 | . . . . . . . . 1 . . . . . . . . . . . . . . . . . . Data Miner (-6/Data Miner) Combat | -11 -10 -10 -8 -8 -6 -6 -6 -6 -5 -5 -5 -5 -5 -5 -5 -4 -4 -4 -4 -4 -4 -4 -3 -3 -2 -1 -------- Run | Yrd Mat Sub Rec Scr Fac Low Low Dat Pro Fac Was Fac Upp Upp War Pro Fac Was Fac Upp Upp Zhi Pro Res Res Acc Hostile Shots Fired 895 | . 59 45 4 5 5 51 12 77 . . . . 8 . 22 6 31 . 24 6 . . 56 198 123 163 Missed 392 | . 17 6 1 1 . 17 5 26 . . . . 7 . 19 6 24 . 17 3 . . 37 108 43 55 Hits 503 | . 42 39 3 4 5 34 7 51 . . . . 1 . 3 . 7 . 7 3 . . 19 90 80 108 Melee 33 | . . . . . . . . . . . . . . . . . 2 . . . . . . 14 17 . Projectile 470 | . 42 39 3 4 5 34 7 51 . . . . 1 . 3 . 5 . 7 3 . . 19 76 63 108 AOE 2 | . . 1 . . . . . . . . . . . . . . . . . . . . . . 1 . Critical Strikes 28 | . . 2 . . . . . . . . . . . . . . 1 . . 1 . . . 13 6 5 Actively Blocked 12 | . . . . . . . . . . . . . . . . . . . . . . . . 4 6 2 Part Disruptions 2 | . . . . . . . . 2 . . . . . . . . . . . . . . . . . . Damage Taken 11531 | . 413 867 42 33 73 584 158 2249 . 38 . . 22 . 51 . 161 . 118 72 . . 787 1448 2276 2139 Core 4327 | . 53 146 26 5 . . . 611 . 38 . . . . . . 29 . 23 . . . 233 371 1173 1619 Absorbed by Shields 48 | . . . . . . . . 39 . . . . . . 9 . . . . . . . . . . . Redirected to Shielding 167 | . . . . . . . . . . . . . . . . . . . . . . . . 167 . . Ignored by Resistances 101 | . . . . 3 . . . 98 . . . . . . . . . . . . . . . . . . Regen/Repaired (Parts) 444 | . . . . 435 . . . . . . . . . . 9 . . . . . . . . . . . Core Remaining (%) 56 | 100 . . . 8 . . . . 28 . . . . . . 96 . . . . . . 75 71 19 . Volleys Fired 242 | 5 49 56 15 . 11 16 7 13 8 . . 7 1 7 . . . 10 . 1 . . 7 7 7 15 Largest 2 | 2 2 2 2 . 1 2 2 1 1 . . 1 1 1 . . . 1 . 1 . . 1 1 1 1 Hottest 165 | 60 80 120 130 . 90 165 165 90 36 . . 36 51 51 . . . 100 . 90 . . 90 100 100 120 Shots Fired 325 | 10 99 70 15 . 11 28 9 13 8 . . 7 1 7 . . . 10 . 1 . . 7 7 7 15 Gun 126 | 10 93 16 1 . . . . . 6 . . . . . . . . . . . . . . . . . Cannon 181 | . 6 49 14 . 11 28 6 13 . . . . 1 7 . . . 10 . 1 . . 7 6 7 15 Launcher 18 | . . 5 . . . . 3 . 2 . . 7 . . . . . . . . . . . 1 . . Special . | . . . . . . . . . . . . . . . . . . . . . . . . . . . Kinetic 73 | 5 50 4 . . . . . . 6 . . . 1 7 . . . . . . . . . . . . Thermal 179 | 5 49 61 14 . 11 16 2 4 . . . . . . . . . . . 1 . . 7 4 . 5 Explosive 18 | . . 5 . . . . 3 . 2 . . 7 . . . . . . . . . . . 1 . . Electromagnetic 26 | . . . 1 . . 12 4 9 . . . . . . . . . . . . . . . . . . Entropic 29 | . . . . . . . . . . . . . . . . . . 10 . . . . . 2 7 10 Robot Hit Streak 23 | 5 9 23 3 . 8 4 4 5 2 . . . . 4 . . . 6 . . . . . 8 3 2 Robot Miss Streak 3 | 1 3 1 1 . . 1 1 1 1 . . . . 1 . . . 1 . . . . . 3 2 . Penetration Max 1 | . . . . . . . . . . . . . . . . . . 1 . . . . . 1 1 . Secondary Targets 1 | . 1 . . . . . . . . . . . . . . . . . . . . . . . . . Max Gunslinging Chain 1 | . 1 . . . . . . . . . . . . . . . . . . . . . . . . . Shots Hit Robots 218 | 6 59 54 9 . 7 16 4 11 4 . . . 1 4 . . . 9 4 3 . . . 14 12 1 Core Hits 112 | 6 30 22 5 . 2 9 5 5 2 . . . . 3 . . . 3 1 3 . . . 7 9 . Critical Kills . | . . . . . . . . . . . . . . . . . . . . . . . . . . . Critical Parts Destroyed . | . . . . . . . . . . . . . . . . . . . . . . . . . . . Critical Strikes 8 | . . . . . . . . 1 . . . . . . . . . 2 . . . . . 1 4 . Corrupt 1 | . . . . . . . . 1 . . . . . . . . . . . . . . . . . . Sever 1 | . . . . . . . . . . . . . . . . . . . . . . . . 1 . . Sunder 6 | . . . . . . . . . . . . . . . . . . 2 . . . . . . 4 . Melee Attacks 115 | . . 54 5 . . . . 4 . . . . 1 . . . . . 12 3 . . . 18 16 2 Impact 27 | . . 27 . . . . . . . . . . . . . . . . . . . . . . . . Slashing 85 | . . 27 5 . . . . 4 . . . . . . . . . . 12 3 . . . 18 16 . Piercing 3 | . . . . . . . . . . . . . 1 . . . . . . . . . . . . 2 Sneak Attacks 15 | . . 3 5 . . . . 1 . . . . . . . . . . 1 3 . . . . 2 . Combat Hostiles . | . . . . . . . . . . . . . . . . . . . . . . . . . . . Follow-up Attacks 2 | . . . . . . . . . . . . . . . . . . . . . . . . 2 . . Damage Inflicted 8036 | 66 743 1365 487 . 256 507 446 297 96 . . . 1 157 . . . 919 263 285 . . . 904 1186 58 Guns 1028 | 66 697 169 . . . . . . 96 . . . . . . . . . . . . . . . . . Cannons 4396 | . 35 1040 112 . 256 507 93 158 . . . . . 157 . . . 919 . . . . . 350 711 58 Explosions 505 | . . . . . . . 353 . . . . . . . . . . . . . . . . 152 . . Melee 2092 | . . 152 375 . . . . 139 . . . . 1 . . . . . 263 285 . . . 402 475 . Ramming 15 | . 11 4 . . . . . . . . . . . . . . . . . . . . . . . . Kinetic 718 | 25 391 49 . . . . . . 96 . . . . 157 . . . . . . . . . . . . Thermal 2300 | 41 341 1160 112 . 256 254 . . . . . . . . . . . . . . . . . 78 . 58 Explosive 505 | . . . . . . . 353 . . . . . . . . . . . . . . . . 152 . . Electromagnetic 504 | . . . . . . 253 93 158 . . . . . . . . . . . . . . . . . . Impact 72 | . . 72 . . . . . . . . . . . . . . . . . . . . . . . . Slashing 2019 | . . 80 375 . . . . 139 . . . . . . . . . . 263 285 . . . 402 475 . Piercing 1 | . . . . . . . . . . . . . 1 . . . . . . . . . . . . . Entropic 1902 | . . . . . . . . . . . . . . . . . . 919 . . . . . 272 711 . Highest Corruption 20 | . 1 1 2 . . . . . . . . . . . . . . 11 11 11 11 11 20 . 3 9 Average Corruption 2 | . 1 1 1 . . . . . . . . . . . . . . 5 11 11 11 11 13 . 1 3 Corruption Purged . | . . . . . . . . . . . . . . . . . . . . . . . . . . . Corruption Blocked . | . . . . . . . . . . . . . . . . . . . . . . . . . . . Effects 85 | . 16 36 4 . . . . . . . . . . . . . . 4 8 3 2 3 7 . 1 1 Message Errors 25 | . 7 8 2 . . . . . . . . . . . . . . 1 2 1 1 . 3 . . . Matter Fused 19 | . 2 9 . . . . . . . . . . . . . . . 2 3 . 1 . . . 1 1 Heat Flow Errors 11 | . 2 6 1 . . . . . . . . . . . . . . . . . . 1 1 . . . Energy Discharges 9 | . 1 5 . . . . . . . . . . . . . . . 1 1 1 . . . . . . Parts Fused 2 | . . 2 . . . . . . . . . . . . . . . . . . . . . . . . Data Loss (minor) 7 | . . 3 . . . . . . . . . . . . . . . . 1 1 . 2 . . . . Data Loss (major) 4 | . 2 1 1 . . . . . . . . . . . . . . . . . . . . . . . Misfires 1 | . 1 . . . . . . . . . . . . . . . . . . . . . . . . . Alerts 2 | . 1 1 . . . . . . . . . . . . . . . . . . . . . . . . Misdirections 4 | . . . . . . . . . . . . . . . . . . . 1 . . . 3 . . . Weapon Failures 1 | . . 1 . . . . . . . . . . . . . . . . . . . . . . . . Overload Shots . | . . . . . . . . . . . . . . . . . . . . . . . . . . . Overflow Damage 684 | . . 82 114 . 43 . 57 . . . . . . 18 . . . . 42 . . . . 120 208 . Projectiles 298 | . . . . . 43 . . . . . . . . 18 . . . . . . . . . 105 132 . Explosions 57 | . . . . . . . 57 . . . . . . . . . . . . . . . . . . . Melee 329 | . . 82 114 . . . . . . . . . . . . . . . 42 . . . . 15 76 . Knockbacks 1 | . . 1 . . . . . . . . . . . . . . . . . . . . . . . . Impact 1 | . . 1 . . . . . . . . . . . . . . . . . . . . . . . . Kinetic . | . . . . . . . . . . . . . . . . . . . . . . . . . . . Secondary . | . . . . . . . . . . . . . . . . . . . . . . . . . . . Self-Inflicted Damage 50 | . . . . . . . 50 . . . . . . . . . . . . . . . . . . . Shots 1 | . . . . . . . 1 . . . . . . . . . . . . . . . . . . . Rammed 5 | . 4 1 . . . . . . . . . . . . . . . . . . . . . . . . Targets Rammed 6 | . 4 1 . 1 . . . . . . . . . . . . . . . . . . . . . . Kicked . | . . . . . . . . . . . . . . . . . . . . . . . . . . . Crushed 1 | . . . . 1 . . . . . . . . . . . . . . . . . . . . . . Highest Temperature 309 | . 185 197 255 . 56 183 51 140 . . . . . . . . . 280 1 60 . 193 309 166 31 66 Average Temperature 64 | . 52 39 66 . 20 66 29 45 . . . . . . . . . 121 1 21 . 86 165 63 15 10 Received Heat Transfer 524 | . 129 126 9 12 . . . . . . . . . . 4 . 9 . . 46 . . . 54 81 54 Effects 1 | . . . . . . . . . . . . . . . . . . . . . . . 1 . . . Energy Bleed 1 | . . . . . . . . . . . . . . . . . . . . . . . 1 . . . Siege Activations . | . . . . . . . . . . . . . . . . . . . . . . . . . . . Martial Activations . | . . . . . . . . . . . . . . . . . . . . . . . . . . . Shielding Activations . | . . . . . . . . . . . . . . . . . . . . . . . . . . . Robots Disrupted 1 | . . . . . . . . 1 . . . . . . . . . . . . . . . . . . Combat Hostiles 1 | . . . . . . . . 1 . . . . . . . . . . . . . . . . . . Robots Corrupted 1 | . . 1 . . . . . . . . . . . . . . . . . . . . . . . . Combat Hostiles . | . . . . . . . . . . . . . . . . . . . . . . . . . . . Parts Fried 3 | . . 1 . . . 2 . . . . . . . . . . . . . . . . . . . . Impact Corruptions 2 | . . 2 . . . . . . . . . . . . . . . . . . . . . . . . Robots Melted . | . . . . . . . . . . . . . . . . . . . . . . . . . . . Combat Hostiles . | . . . . . . . . . . . . . . . . . . . . . . . . . . . Parts Melted 9 | . 1 3 . . 3 1 . . . . . . . . . . . . . . . . . . 1 . Heat Transferred 3550 | 100 774 1667 148 . 350 400 . . . . . . . . . . . . . . . . . 74 . 37 Parts Sabotaged . | . . . . . . . . . . . . . . . . . . . . . . . . . . . Parts Stolen . | . . . . . . . . . . . . . . . . . . . . . . . . . . . Parts Stripped . | . . . . . . . . . . . . . . . . . . . . . . . . . . . Power Chain Reactions . | . . . . . . . . . . . . . . . . . . . . . . . . . . . Alert | -11 -10 -10 -8 -8 -6 -6 -6 -6 -5 -5 -5 -5 -5 -5 -5 -4 -4 -4 -4 -4 -4 -4 -3 -3 -2 -1 ------- Run | Yrd Mat Sub Rec Scr Fac Low Low Dat Pro Fac Was Fac Upp Upp War Pro Fac Was Fac Upp Upp Zhi Pro Res Res Acc Maximum Alert Level 1 | . . . . . . . . . . . . 1 . . . . . . . . . . . . . . Low Security (%) 99 | 100 100 . 100 . 100 . . . . 100 100 75 . . . . 100 100 100 . . . . 100 100 100 Level 1 . | . . . . . . . . . . . . 24 . . . . . . . . . . . . . . Level 2 . | . . . . . . . . . . . . . . . . . . . . . . . . . . . Level 3 . | . . . . . . . . . . . . . . . . . . . . . . . . . . . Level 4 . | . . . . . . . . . . . . . . . . . . . . . . . . . . . Level 5 . | . . . . . . . . . . . . . . . . . . . . . . . . . . . High Security . | . . . . . . . . . . . . . . . . . . . . . . . . . . . Max Security . | . . . . . . . . . . . . . . . . . . . . . . . . . . . Peak Influence 287 | 15 111 . 105 . 30 . . . . 30 10 287 . . . . 75 31 31 . . . . 103 188 141 Initial 103 | . . . 13 . . . . . . . 10 . . . . . 9 26 . . . . . 97 . 103 Average 32 | 3 31 . 36 . 2 . . . . 8 1 87 . . . . 7 13 3 . . . . 65 42 97 Influence Increases 2511 | 25 358 30 269 . 67 115 70 20 5 46 . 347 . . 15 45 75 17 48 . . . 225 102 410 222 Destroy 0b10 Robot/C 820 | . 240 . 60 . 20 80 60 20 . . . 140 . . . . . . . . . . . 40 160 . Destroy 0b10 Robot/NC 125 | 25 30 . 20 . 5 5 . . 5 . . 5 . . . . . . 5 . . . . 15 10 . Destroy Leader 158 | . 56 . . . 10 30 10 . . . . 10 . . . . . . 2 . . . . 10 30 . Allied During Kill 45 | . . . . . . . . . . . . 45 . . . . . . . . . . . . . . Successful Hack 82 | . . . 16 . . . . . . 46 . 8 . . . . . . 12 . . . . . . . Select Force Hacks 150 | . . . 150 . . . . . . . . . . . . . . . . . . . . . . . Disable Machine 135 | . . . 15 . 30 . . . . . . 15 . . . . . . . . . . . . 30 45 Destroy Structure 201 | . 2 . 8 . 2 . . . . . . 94 . . . . . 2 14 . . . . 22 30 27 Partial Spotted 60 | . . . . . . . . . . . . 30 . . . . . 15 15 . . . . . . . Lose Combat Pursuer 735 | . 30 30 . . . . . . . . . . . . 15 45 75 . . . . . 225 15 150 150 Influence Decreases 2436 | 25 320 39 298 . 67 115 70 20 5 16 30 60 147 137 18 30 15 92 48 . . . 80 247 237 320 Entered New Map 365 | . . 19 16 . . . . . . . 20 . 107 27 3 . 6 49 . . . . . 48 . 70 Time Decay 1652 | 25 320 20 282 . 67 115 60 10 5 16 10 60 40 110 15 30 9 43 38 . . . 30 90 107 150 Lost Part 419 | . . . . . . . 10 10 . . . . . . . . . . 10 . . . 50 109 130 100 Squads Dispatched 25 | . 1 . . . 3 . . . . . . 1 . . . . 2 . 3 . . . . 4 7 4 Investigation 4 | . . . . . . . . . . . . 1 . . . . . . 1 . . . . . . 2 Extermination 4 | . . . . . 1 . . . . . . . . . . . . . 1 . . . . . 1 1 Reinforcement 12 | . 1 . . . 2 . . . . . . . . . . . 2 . 1 . . . . 2 3 1 Assault . | . . . . . . . . . . . . . . . . . . . . . . . . . . . Garrison . | . . . . . . . . . . . . . . . . . . . . . . . . . . . Intercept 5 | . . . . . . . . . . . . . . . . . . . . . . . . 2 3 . Searches Triggered . | . . . . . . . . . . . . . . . . . . . . . . . . . . . Construction Impeded 1 | . . . . . . . . . . . . . . . . . . . . . . . . . 1 . Haulers Reinforced . | . . . . . . . . . . . . . . . . . . . . . . . . . . . Active Scanning Responses . | . . . . . . . . . . . . . . . . . . . . . . . . . . . Cargo Convoy Interrupts . | . . . . . . . . . . . . . . . . . . . . . . . . . . . Stealth | -11 -10 -10 -8 -8 -6 -6 -6 -6 -5 -5 -5 -5 -5 -5 -5 -4 -4 -4 -4 -4 -4 -4 -3 -3 -2 -1 --------- Run | Yrd Mat Sub Rec Scr Fac Low Low Dat Pro Fac Was Fac Upp Upp War Pro Fac Was Fac Upp Upp Zhi Pro Res Res Acc Distress Signals 6 | . 1 . . . . . . . . . . . . . . . . . 2 . . . . 1 1 1 Communications Jammed . | . . . . . . . . . . . . . . . . . . . . . . . . . . . Distress Signals . | . . . . . . . . . . . . . . . . . . . . . . . . . . . Times Spotted 217 | . 24 19 2 4 2 4 3 5 . 1 . 4 1 . 24 3 22 6 9 3 . . 19 15 30 17 Peak Tracking Total 16 | . 3 6 1 4 1 2 3 4 . 1 . 3 1 . 11 3 16 5 9 3 . . 9 10 14 7 Tactical Retreats 22 | . 2 1 . . . . . . . . . . . . 1 2 1 . . . . . 4 1 6 4 Traps | -11 -10 -10 -8 -8 -6 -6 -6 -6 -5 -5 -5 -5 -5 -5 -5 -4 -4 -4 -4 -4 -4 -4 -3 -3 -2 -1 ------- Run | Yrd Mat Sub Rec Scr Fac Low Low Dat Pro Fac Was Fac Upp Upp War Pro Fac Was Fac Upp Upp Zhi Pro Res Res Acc Traps Triggered 7 | . 1 1 . . 1 . . . . 2 . . . . . . 1 . . . . . . . . 1 Indirectly . | . . . . . . . . . . . . . . . . . . . . . . . . . . . Trap Hack Attempts . | . . . . . . . . . . . . . . . . . . . . . . . . . . . Triggered . | . . . . . . . . . . . . . . . . . . . . . . . . . . . Disarmed . | . . . . . . . . . . . . . . . . . . . . . . . . . . . Reprogrammed . | . . . . . . . . . . . . . . . . . . . . . . . . . . . Reused . | . . . . . . . . . . . . . . . . . . . . . . . . . . . Traps Extracted . | . . . . . . . . . . . . . . . . . . . . . . . . . . . Installed 1 | . . 1 . . . . . . . . . . . . . . . . . . . . . . . . Triggered . | . . . . . . . . . . . . . . . . . . . . . . . . . . . Machines | -11 -10 -10 -8 -8 -6 -6 -6 -6 -5 -5 -5 -5 -5 -5 -5 -4 -4 -4 -4 -4 -4 -4 -3 -3 -2 -1 ---------- Run | Yrd Mat Sub Rec Scr Fac Low Low Dat Pro Fac Was Fac Upp Upp War Pro Fac Was Fac Upp Upp Zhi Pro Res Res Acc Machines Disabled 10 | . . 1 1 . 2 . . . . . . 1 . . . . . . . . . . . . 2 3 Max in Single Turn 1 | . . 1 1 . 1 . . . . . . . . . . . . . . . . . . . 1 1 Garrison Access 3 | . . . . . . . . . . . . . . . . . . . 1 . . . . 2 . . Machines Repaired . | . . . . . . . . . . . . . . . . . . . . . . . . . . . Machines Dismantled . | . . . . . . . . . . . . . . . . . . . . . . . . . . . Machines Sabotaged . | . . . . . . . . . . . . . . . . . . . . . . . . . . . Overloaded Fab Kills . | . . . . . . . . . . . . . . . . . . . . . . . . . . . Hacking | -11 -10 -10 -8 -8 -6 -6 -6 -6 -5 -5 -5 -5 -5 -5 -5 -4 -4 -4 -4 -4 -4 -4 -3 -3 -2 -1 --------- Run | Yrd Mat Sub Rec Scr Fac Low Low Dat Pro Fac Was Fac Upp Upp War Pro Fac Was Fac Upp Upp Zhi Pro Res Res Acc Machines Accessed 54 | . 4 2 10 8 . . 1 4 . 2 . 3 2 . 2 . . . 4 . . 4 . 5 1 2 Terminals 20 | . 4 . 5 . . . . . . 2 . 1 . . . . . . 2 . . . . 3 1 2 Fabricators 1 | . . . . . . . . . . . . . . . . . . . 1 . . . . . . . Repair Stations 1 | . . . . . . . . . . . . 1 . . . . . . . . . . . . . . Recycling Units 6 | . . . 5 . . . . . . . . 1 . . . . . . . . . . . . . . Scanalyzers . | . . . . . . . . . . . . . . . . . . . . . . . . . . . Garrison Access 3 | . . . . . . . . . . . . . . . . . . . 1 . . . . 2 . . Total Hacks 190 | . 11 5 25 69 . . 1 32 . 5 . 6 2 . 2 . . . 10 . . 10 . 6 1 5 Successful 147 | . 1 5 11 69 . . 1 32 . 3 . 4 2 . 2 . . . 4 . . 10 . 3 . . Failed 43 | . 10 . 14 . . . . . . 2 . 2 . . . . . . 6 . . . . 3 1 5 Catastrophic 6 | . 1 . 2 . . . . . . . . . . . . . . . . . . . . 1 . 2 Database Lockouts . | . . . . . . . . . . . . . . . . . . . . . . . . . . . Manual 42 | . 7 . 23 . . . . . . 4 . 3 . . 1 . . . 2 . . . . 2 . . Terminals 50 | . 11 . 17 . . . . . . 5 . 2 . . . . . . 5 . . . . 4 1 5 Fabricators 2 | . . . . . . . . . . . . . . . . . . . 2 . . . . . . . Repair Stations 2 | . . . . . . . . . . . . 2 . . . . . . . . . . . . . . Recycling Units 10 | . . . 8 . . . . . . . . 2 . . . . . . . . . . . . . . Scanalyzers . | . . . . . . . . . . . . . . . . . . . . . . . . . . . Garrison Access 5 | . . . . . . . . . . . . . . . . . . . 3 . . . . 2 . . Terminal Hacks 124 | . . 5 . 69 . . 1 32 . 2 . . 2 . 2 . . . 1 . . 10 . . . . Record 86 | . . 4 . 69 . . . 11 . . . . . . . . . . . . . 2 . . . . Part Schematic 16 | . . . . . . . . 12 . . . . . . . . . . . . . 4 . . . . Robot Schematic 6 | . . . . . . . . 6 . . . . . . . . . . . . . . . . . . Prototype ID Bank 7 | . . . . . . . . 3 . . . . . . . . . . . . . 4 . . . . Open Door 5 | . . . . . . . 1 . . . . . 2 . 2 . . . . . . . . . . . Branch Access Points 1 | . . . . . . . . . . . . . . . . . . . 1 . . . . . . . Hauler Manifests 1 | . . . . . . . . . . 1 . . . . . . . . . . . . . . . . Registered Components 1 | . . . . . . . . . . 1 . . . . . . . . . . . . . . . . Proto ID Catalog 1 | . . 1 . . . . . . . . . . . . . . . . . . . . . . . . Fabricator Hacks 2 | . . . . . . . . . . . . . . . . . . . 2 . . . . . . . Network Status 1 | . . . . . . . . . . . . . . . . . . . 1 . . . . . . . Build 1 | . . . . . . . . . . . . . . . . . . . 1 . . . . . . . Repair Station Hacks 1 | . . . . . . . . . . . . 1 . . . . . . . . . . . . . . Refit 1 | . . . . . . . . . . . . 1 . . . . . . . . . . . . . . Recycling Unit Hacks 1 | . . . . . . . . . . . . 1 . . . . . . . . . . . . . . Retrieve Components 1 | . . . . . . . . . . . . 1 . . . . . . . . . . . . . . Scanalyzer . | . . . . . . . . . . . . . . . . . . . . . . . . . . . Garrison Access Hacks 3 | . . . . . . . . . . . . . . . . . . . 1 . . . . 2 . . Seal Access 3 | . . . . . . . . . . . . . . . . . . . 1 . . . . 2 . . Unauthorized Hacks 16 | . 1 . 11 . . . . . . 1 . 2 . . . . . . . . . . . 1 . . Terminals 10 | . 1 . 6 . . . . . . 1 . 1 . . . . . . . . . . . 1 . . Assimilate 2 | . . . . . . . . . . 1 . 1 . . . . . . . . . . . . . . Botnet 2 | . . . 1 . . . . . . . . . . . . . . . . . . . . 1 . . Operators 1 | . 1 . . . . . . . . . . . . . . . . . . . . . . . . . Skim 5 | . . . 5 . . . . . . . . . . . . . . . . . . . . . . . Fabricators . | . . . . . . . . . . . . . . . . . . . . . . . . . . . Repair Stations . | . . . . . . . . . . . . . . . . . . . . . . . . . . . Recycling Units 6 | . . . 5 . . . . . . . . 1 . . . . . . . . . . . . . . Tunnel 5 | . . . 5 . . . . . . . . . . . . . . . . . . . . . . . Scrapoids 1 | . . . . . . . . . . . . 1 . . . . . . . . . . . . . . Scanalyzers . | . . . . . . . . . . . . . . . . . . . . . . . . . . . Garrison Access . | . . . . . . . . . . . . . . . . . . . . . . . . . . . Data Cores Recovered . | . . . . . . . . . . . . . . . . . . . . . . . . . . . Used . | . . . . . . . . . . . . . . . . . . . . . . . . . . . Hacking Detections 25 | . 4 . 6 . . . . . . 2 . 3 . . . . . . 4 . . . . 3 1 2 Full Trace Events 5 | . . . 2 . . . . . . . . . . . . . . . 1 . . . . . . 2 Feedback Events 2 | . . . 1 . . . . . . . . . . . . . . . 1 . . . . . . . Corruption 1 | . . . 1 . . . . . . . . . . . . . . . . . . . . . . . Hackware Fried 1 | . . . . . . . . . . . . . . . . . . . 1 . . . . . . . Feedback Blocked . | . . . . . . . . . . . . . . . . . . . . . . . . . . . Robot Schematics Acquired 6 | . . . . . . . . 6 . . . . . . . . . . . . . . . . . . Robots Built . | . . . . . . . . . . . . . . . . . . . . . . . . . . . Authchips . | . . . . . . . . . . . . . . . . . . . . . . . . . . . Time . | . . . . . . . . . . . . . . . . . . . . . . . . . . . Total Robot Build Rating . | . . . . . . . . . . . . . . . . . . . . . . . . . . . Part Schematics Acquired 16 | . . . . . . . . 12 . . . . . . . . . . . . . 4 . . . . Parts Built 2 | . . . . . . . . . . . . . . . . . . . 2 . . . . . . . Authchips . | . . . . . . . . . . . . . . . . . . . . . . . . . . . Time 64 | . . . . . . . . . . . . . . . . . . . 64 . . . . . . . Total Part Build Rating 16 | . . . . . . . . . . . . . . . . . . . 16 . . . . . . . Parts Repaired . | . . . . . . . . . . . . . . . . . . . . . . . . . . . Time . | . . . . . . . . . . . . . . . . . . . . . . . . . . . Parts Recycled . | . . . . . . . . . . . . . . . . . . . . . . . . . . . Recycled Matter . | . . . . . . . . . . . . . . . . . . . . . . . . . . . Retrieved Matter . | . . . . . . . . . . . . . . . . . . . . . . . . . . . Retrieved Components 3 | . . . . . . . . . . . . 3 . . . . . . . . . . . . . . Parts Scanalyzed . | . . . . . . . . . . . . . . . . . . . . . . . . . . . Part Schematics Acquired . | . . . . . . . . . . . . . . . . . . . . . . . . . . . Parts Damaged . | . . . . . . . . . . . . . . . . . . . . . . . . . . . Bothacking | -11 -10 -10 -8 -8 -6 -6 -6 -6 -5 -5 -5 -5 -5 -5 -5 -4 -4 -4 -4 -4 -4 -4 -3 -3 -2 -1 ------------ Run | Yrd Mat Sub Rec Scr Fac Low Low Dat Pro Fac Was Fac Upp Upp War Pro Fac Was Fac Upp Upp Zhi Pro Res Res Acc Used RIF Installer . | . . . . . . . . . . . . . . . . . . . . . . . . . . . Robots Hacked . | . . . . . . . . . . . . . . . . . . . . . . . . . . . Non-combat . | . . . . . . . . . . . . . . . . . . . . . . . . . . . Combat . | . . . . . . . . . . . . . . . . . . . . . . . . . . . Robot Hacks Applied . | . . . . . . . . . . . . . . . . . . . . . . . . . . . Relay Couplers Released 3 | . . . . . . . . . . . . . . . . . . . . . . . . 3 . . Machine Destruction 3 | . . . . . . . . . . . . . . . . . . . . . . . . 3 . . Fabnet Peak Effective % . | . . . . . . . . . . . . . . . . . . . . . . . . . . . Robots Rewired 1 | . . . . . . . . . . . . . . . 1 . . . . . . . . . . . Allies Hacked . | . . . . . . . . . . . . . . . . . . . . . . . . . . . Hacks Repelled . | . . . . . . . . . . . . . . . . . . . . . . . . . . . Allies | -11 -10 -10 -8 -8 -6 -6 -6 -6 -5 -5 -5 -5 -5 -5 -5 -4 -4 -4 -4 -4 -4 -4 -3 -3 -2 -1 -------- Run | Yrd Mat Sub Rec Scr Fac Low Low Dat Pro Fac Was Fac Upp Upp War Pro Fac Was Fac Upp Upp Zhi Pro Res Res Acc Total Allies 8 | . . . . . . . . . . 1 . 6 . . 1 . . . . . . . . . . . Largest Group 5 | . . . . . . . . . . 1 1 5 . . 1 . . . . . . . . . . . Highest-Rated Group 238 | . . . . . . . . . . 26 26 238 . . 57 . . . . . . . . . . . Highest-Rated Ally 57 | . . . . . . . . . . 26 26 50 . . 57 . . . . . . . . . . . Total Orders 2 | . . . . . . . . . . . . . . . 2 . . . . . . . . . . . AID 2 | . . . . . . . . . . . . . . . 2 . . . . . . . . . . . Ally Attacks 28 | . . . . . . . . . . . . 28 . . . . . . . . . . . . . . Total Damage 716 | . . . . . . . . . . . . 716 . . . . . . . . . . . . . . Kills 9 | . . . . . . . . . . . . 9 . . . . . . . . . . . . . . Allies Corrupted . | . . . . . . . . . . . . . . . . . . . . . . . . . . . Allies Melted . | . . . . . . . . . . . . . . . . . . . . . . . . . . . Intel | -11 -10 -10 -8 -8 -6 -6 -6 -6 -5 -5 -5 -5 -5 -5 -5 -4 -4 -4 -4 -4 -4 -4 -3 -3 -2 -1 ------- Run | Yrd Mat Sub Rec Scr Fac Low Low Dat Pro Fac Was Fac Upp Upp War Pro Fac Was Fac Upp Upp Zhi Pro Res Res Acc Active Infowar (turns) 14111 | 53 2670 1831 849 1655 631 1618 1061 273 161 53 100 170 97 239 1007 83 69 133 238 105 93 66 94 200 285 277 Optics 3489 | . . . . . . . . 19 161 53 100 170 97 239 1007 83 69 133 238 105 93 66 94 200 285 277 Sensors 6497 | . . . . . 423 1618 1061 273 161 53 100 170 97 239 859 79 69 133 204 105 93 66 94 200 214 186 Terrain 1283 | . . . . . . . . . . 10 . 122 97 239 284 . . . 47 105 93 66 11 127 82 . Structural 2892 | . . 176 849 1655 212 . . . . . . . . . . . . . . . . . . . . . Seismic 4378 | 53 2670 1655 . . . . . . . . . . . . . . . . . . . . . . . . Decoding 972 | . . . . . . . . 21 161 53 100 170 97 239 131 . . . . . . . . . . . Robot Analysis Total 151 | . . . . . . . . 151 . . . . . . . . . . . . . . . . . . Derelict Logs Recovered 18 | . . 1 . 4 . 2 2 . 3 . . . . 3 . 1 . . . 1 1 . . . . . Drone Launches . | . . . . . . . . . . . . . . . . . . . . . . . . . . . Drone Recoveries . | . . . . . . . . . . . . . . . . . . . . . . . . . . . Decoded 0b10 Intel 5 | . . . . . . . . . . 1 . 4 . . . . . . . . . . . . . . Patrols 2 | . . . . . . . . . . 1 . 1 . . . . . . . . . . . . . . Investigations 1 | . . . . . . . . . . . . 1 . . . . . . . . . . . . . . Guards 2 | . . . . . . . . . . . . 2 . . . . . . . . . . . . . . Exploration | -11 -10 -10 -8 -8 -6 -6 -6 -6 -5 -5 -5 -5 -5 -5 -5 -4 -4 -4 -4 -4 -4 -4 -3 -3 -2 -1 ------------- Run | Yrd Mat Sub Rec Scr Fac Low Low Dat Pro Fac Was Fac Upp Upp War Pro Fac Was Fac Upp Upp Zhi Pro Res Res Acc Turns Passed 17014 | 118 2670 3402 849 2890 635 1618 1061 273 161 53 100 170 97 239 1007 83 69 133 238 105 93 66 94 200 285 305 Spaces Moved 11730 | 63 574 1679 496 1794 246 616 432 110 387 136 281 284 211 356 937 240 151 232 395 256 266 142 188 326 423 509 Core 132 | 9 . . . 94 . . . . . . . . . . . . . . . . . . . . 15 14 Treads 5879 | 54 574 1679 496 1700 246 616 432 82 . . . . . . . . . . . . . . . . . . Legs . | . . . . . . . . . . . . . . . . . . . . . . . . . . . Wheels . | . . . . . . . . . . . . . . . . . . . . . . . . . . . Hover 642 | . . . . . . . . . . . . 23 . . 619 . . . . . . . . . . . Flight 5077 | . . . . . . . . 28 387 136 281 261 211 356 318 240 151 232 395 256 266 142 188 326 408 495 Fastest Speed 15 | 50 160 160 160 50 160 240 240 32 35 35 35 35 35 35 34 34 32 37 31 32 35 35 35 31 15 37 Average Speed 108 | 144 160 160 160 158 224 240 240 186 35 35 35 35 35 36 41 34 33 39 32 32 35 35 35 34 40 37 Slowest Speed 240 | 160 160 160 160 240 240 240 240 240 35 35 35 50 35 230 109 34 34 109 37 35 35 35 39 45 200 50 Overloaded Moves 70 | . . . . . . . . 26 . . . 20 . . . . 24 . . . . . . . . . Propulsion Burnouts . | . . . . . . . . . . . . . . . . . . . . . . . . . . . Robots Hopped 49 | . . . . . . . . . . 2 . 3 1 . 1 2 3 . 2 . . . 1 8 13 13 Potential Cave-ins 7 | . . . . . . . . . . . . 2 . . . . . . . . . . 1 . . 4 Cave-ins Triggered 1 | . . . . . . . . . . . . . . . . . . . . . . . 1 . . . Exploration Rate (%) 51 | 4 92 77 95 90 7 77 73 81 61 7 97 12 45 45 91 56 11 86 16 52 58 63 50 11 18 20 Regions Visited 26 Branch Regions 15 Pre-discovered Areas 34 | . . 1 5 5 . . . 19 1 . . . . 1 . 1 . . . . . 1 . . . . Known Exits Taken 18 | . . 1 . . 1 1 1 1 1 . . 1 1 1 1 1 . . 1 1 1 1 1 1 1 . Unknown Exits Taken 4 | 1 1 . 1 1 . . . . . . . . . . . . . . . . . . . . . . Scrap Searched 16 | . . 4 . 3 . . 4 . 2 . . . 1 1 . . . . . 1 . . . . . . Spaces Dug 154 | . . 8 3 . 2 2 23 . 29 . . 54 1 2 . . . . 7 . . . 7 3 5 8 Terrain Destroyed 222 | . . 16 9 . 2 4 28 . 29 . . 73 1 6 . . . 2 7 1 . . 7 11 10 16 Melee 25 | . . 8 . . . . . . . . . . . . . . . . 7 . . . . 3 5 2 Projectile 55 | . . . 9 . 2 4 2 . . . . . 1 6 . . . 2 . 1 . . 7 2 5 14 AOE 142 | . . 8 . . . . 26 . 29 . . 73 . . . . . . . . . . . 6 . . Terrain Rammed . | . . . . . . . . . . . . . . . . . . . . . . . . . . . Walls Destroyed . | . . . . . . . . . . . . . . . . . . . . . . . . . . . Machines Disabled . | . . . . . . . . . . . . . . . . . . . . . . . . . . . Actions | -11 -10 -10 -8 -8 -6 -6 -6 -6 -5 -5 -5 -5 -5 -5 -5 -4 -4 -4 -4 -4 -4 -4 -3 -3 -2 -1 --------- Run | Yrd Mat Sub Rec Scr Fac Low Low Dat Pro Fac Was Fac Upp Upp War Pro Fac Was Fac Upp Upp Zhi Pro Res Res Acc Total 15440 | 77 2225 2234 529 1834 313 728 447 159 404 138 281 342 231 459 1550 238 165 263 483 271 265 156 205 366 487 590 Wait 3058 | . 1579 389 7 . 25 94 1 9 . . . 43 15 90 580 . 16 20 68 10 . 7 11 1 30 63 Move 11615 | 62 573 1679 495 1794 245 615 431 109 386 132 280 277 208 355 934 235 146 231 390 255 265 141 184 309 398 486 Hop 42 | . . . . . . . . . . 2 . 3 1 . 1 2 1 . 2 . . . 1 8 11 10 Pick Up 71 | 3 11 15 2 11 7 1 5 2 . . . . 2 . 5 . . . . . . 2 . 3 2 . Fast Attach 86 | 7 1 6 . 6 9 1 . 1 3 2 1 1 1 1 7 . 1 . 5 1 . 2 . 12 15 3 Attach 54 | . . 4 . 2 3 . 1 10 2 . . 4 1 3 5 . . 1 1 . . 1 . 6 3 7 Detach 22 | . . 1 . 1 1 . . . 3 . . 4 1 3 1 . . 1 . . . . . 1 1 4 Swap 49 | . 4 11 3 7 6 1 2 3 . 1 . . . . 3 1 . . 1 1 . 2 1 2 . . Drop 69 | . 4 11 2 13 4 . . 8 2 1 . 3 . . 11 . . . 4 . . 1 . 1 4 . Fire 242 | 5 49 56 15 . 11 16 7 13 8 . . 7 1 7 . . . 10 . 1 . . 7 7 7 15 Melee 113 | . . 54 5 . . . . 4 . . . . 1 . . . . . 12 3 . . . 16 16 2 Ram . | . . . . . . . . . . . . . . . . . . . . . . . . . . . Kick . | . . . . . . . . . . . . . . . . . . . . . . . . . . . Crush 4 | . 4 . . . . . . . . . . . . . . . . . . . . . . . . . Escape Stasis 4 | . . . . . 2 . . . . . . . . . . . 1 . . . . . 1 . . . Rewire 3 | . . . . . . . . . . . . . . . 3 . . . . . . . . . . . Trap 1 | . . 1 . . . . . . . . . . . . . . . . . . . . . . . . Miscellaneous 7 | . . 7 . . . . . . . . . . . . . . . . . . . . . . . . Route ------- -11/Scrapyard -10/Materials (discovered 5 exits: [*Mat x3] / [*Min] / *Sub) -10/Subcaves (discovered 3 exits: [*Mat x2] / *Rec) -8/Recycling (discovered 2 exits: [*Fac] / *Scr) -8/Scraptown (discovered 2 exits: [*Fac x2]) -6/Factory (discovered 4 exits: Fac x2 / *Low x2) -6/Lower Caves -6/Lower Caves (discovered 2 exits: *Fac / *Dat) -6/Data Miner -5/Proximity Caves -5/Factory (discovered 3 exits: Fac / Upp x2) -5/Waste -5/Factory (discovered 3 exits: *Fac / *Upp x2) -5/Upper Caves -5/Upper Caves (discovered 2 exits: Fac / *War) -5/Warlord -4/Proximity Caves -4/Factory (discovered 3 exits: *Res x2 / Ext) -4/Waste -4/Factory (discovered 4 exits: *Upp x2 / Ext x2) -4/Upper Caves -4/Upper Caves (discovered 2 exits: *Res / *Zhi) -4/Zhirov -3/Proximity Caves -3/Research (discovered 2 exits: *Res / Arm) -2/Research (discovered 3 exits: *Acc x2 / [*Qua]) -1/Access History --------- Turn | Location | Event 37 | -11/Scrapyard | Discovered new exit (range 16) 119 | -11/Scrapyard | Entered Materials 310 | -10/Materials | Build established: Mutant 496 | -10/Materials | Discovered new exit (range 12) 588 | -10/Materials | Discovered new exit (range 9) 1988 | -10/Materials | Discovered new exit (range 14) 2366 | -10/Materials | Discovered new exit (range 8) 2777 | -10/Materials | Discovered new exit (range 8) 2789 | -10/Materials | Entered Subcaves 2794 | -10/Subcaves | Learned 4 Materials zone layouts 3394 | -10/Subcaves | Discovered new exit (range 5) 3745 | -10/Subcaves | Shifting Twisted Machinery released Riot Gun 3948 | -10/Subcaves | Visited Clippyterm 3953 | -10/Subcaves | Identified exit to Recycling 3953 | -10/Subcaves | Learned location of Deep Caves (-7) 4096 | -10/Subcaves | Shifting Twisted Machinery released Sub. Beam Cannon 4102 | -10/Subcaves | Shifting Twisted Machinery released Sub. Laser 4519 | -10/Subcaves | Shifting Twisted Machinery released Sub. Optics 5071 | -10/Subcaves | Discovered new exit (range 15) 5197 | -10/Subcaves | Core integrity fell below 50% 5746 | -10/Subcaves | Visited 4L-MR0's lab 5797 | -10/Subcaves | Found Rainbow Chip 6191 | -10/Subcaves | Entered Recycling 6603 | -8/Recycling | Core integrity fell below 20% 6723 | -8/Recycling | Discovered new exit (range 14) 7002 | -8/Recycling | Scanned before Scraplab entrance 7020 | -8/Recycling | Discovered new exit (range 11) 7024 | -8/Recycling | Entered Scraplab 7040 | -8/Recycling | Entered Scraptown 7040 | -8/Scraptown | System corruption cleaned by C-Scrubber 7344 | -8/Scraptown | Scanned Subdweller tech in exchange for log data 7347 | -8/Scraptown | Learned location of Zion (-7) 7349 | -8/Scraptown | Learned Factory trap positions 7352 | -8/Scraptown | Learned Factory emergency access door positions 7379 | -8/Scraptown | Discovered new exit (range 3) 7514 | -8/Scraptown | Visited Symbiants 7558 | -8/Scraptown | Visited Junk Repository 7634 | -8/Scraptown | Visited Cyclists 7654 | -8/Scraptown | Visited Observation Area 7690 | -8/Scraptown | Visited IN-MT5's Study 7974 | -8/Scraptown | Visited UFD Registry 7986 | -8/Scraptown | Registered with UFD as "Protondisc" 8041 | -8/Scraptown | Entered Cyclist Reading Room 8074 | -8/Scraptown | Visited CR-KLE's Repair Center 8328 | -8/Scraptown | Visited Science Guys 8396 | -8/Scraptown | Visited Curators Association 8472 | -8/Scraptown | Delivered Scrap Shield to a Scientist 8609 | -8/Scraptown | Visited A0-MCA Data Center 8621 | -8/Scraptown | Given a B+ rating by A0-MCA 8648 | -8/Scraptown | Visited Scrapoid Pod Storage 8678 | -8/Scraptown | Visited Cartography Club 8712 | -8/Scraptown | Found Surveybot 17 Chip 8732 | -8/Scraptown | Learned location of Extension (-4) 8732 | -8/Scraptown | Learned location of Cetus (-4) 8732 | -8/Scraptown | Learned location of Testing (-3) 8732 | -8/Scraptown | Learned location of Quarantine (-2) 8732 | -8/Scraptown | Learned 20 Factory zone layouts 8732 | -8/Scraptown | Learned 12 Research zone layouts 8732 | -8/Scraptown | Learned 4 Mines zone layouts 8732 | -8/Scraptown | Learned 4 Storage zone layouts 8732 | -8/Scraptown | Learned 4 Recycling zone layouts 8732 | -8/Scraptown | Learned 8 Lower Caves zone layouts 8732 | -8/Scraptown | Learned 20 Upper Caves zone layouts 8732 | -8/Scraptown | Learned 12 Proximity Caves zone layouts 8732 | -8/Scraptown | Learned 16 Proximity Caves zone layouts 8732 | -8/Scraptown | Learned 20 Proximity Caves zone layouts 8732 | -8/Scraptown | Learned location of 1 exit from Factory 8732 | -8/Scraptown | Learned location of 1 exit from Proximity Caves 8732 | -8/Scraptown | Learned location of 3 exits from Proximity Caves 8780 | -8/Scraptown | Visited Research Penetration Think Tank 8823 | -8/Scraptown | Visited Abandonware Association 8866 | -8/Scraptown | Visited Chapter 10 8895 | -8/Scraptown | Visited Scrap Suit Storage 9052 | -8/Scraptown | Visited Assassins FH 9546 | -8/Scraptown | CR-KLE repaired 7 parts 9738 | -8/Scraptown | Found A0-MCA's Component Scanner 9821 | -8/Scraptown | Met Optimus 9821 | -8/Scraptown | Accepted into 0bPrime 9923 | -8/Scraptown | Discovered new exit (range 3) 9927 | -8/Scraptown | Civil war broke out across Scraptown 9930 | -8/Scraptown | Entered Factory 9930 | -6/Factory | Evolved 8 slots: Power x1, Propulsion x2, Utility x5 9931 | -6/Factory | Identified exit to Lower Caves 9932 | -6/Factory | Identified exit to Factory 9934 | -6/Factory | Loaded intel: 96 trap records 10428 | -6/Factory | Discovered exit to Lower Caves (range 7) 10565 | -6/Factory | Entered Lower Caves 10567 | -6/Lower Caves | UFD Scientist delivered a prototype 10605 | -6/Lower Caves | Found Prototype Protection 11246 | -6/Lower Caves | Discovered new exit (range 13) 11268 | -6/Lower Caves | Identified exit to Lower Caves 11934 | -6/Lower Caves | Learned location of 1 exit from Factory 12183 | -6/Lower Caves | Entered another Lower Caves area 12199 | -6/Lower Caves | Discovered exit to Factory (range 8) 12928 | -6/Lower Caves | Encountered a Warlord checkpoint 12956 | -6/Lower Caves | Learned Factory terminal intel 13073 | -6/Lower Caves | Learned Factory terminal intel 13207 | -6/Lower Caves | Discovered new exit (range 13) 13242 | -6/Lower Caves | Identified exit to Data Miner 13244 | -6/Lower Caves | Entered Data Miner 13244 | -6/Data Miner | Discovered new exit (range 6) 13290 | -6/Data Miner | Met Data Miner 13333 | -6/Data Miner | Learned location of Section 7 (-2) 13333 | -6/Data Miner | Acquired the access code to Warlord's prototype stash 13379 | -6/Data Miner | Received God Mode back door access code from Data Miner 13409 | -6/Data Miner | Destroyed Data Miner 13418 | -6/Data Miner | Found Prototype Hackware 13424 | -6/Data Miner | Found Prototype Hackware 13430 | -6/Data Miner | Interfaced with the Data Conduit 13483 | -6/Data Miner | Identified Enh. Scrap Shield 13498 | -6/Data Miner | Identified Deep Network Scanner 13498 | -6/Data Miner | Identified System Mapper 13509 | -6/Data Miner | Core integrity fell below 50% 13516 | -6/Data Miner | Identified exit to Proximity Caves 13517 | -6/Data Miner | Entered Proximity Caves 13535 | -5/Proximity Caves | Lost 15 parts (2p6n4u3w) 13615 | -5/Proximity Caves | Learned location of 1 exit from Proximity Caves 13678 | -5/Proximity Caves | Entered Factory 13678 | -5/Factory | Evolved 2 slots: Propulsion x1, Utility x1 13679 | -5/Factory | Identified exit to Upper Caves 13680 | -5/Factory | Identified exit to Factory 13681 | -5/Factory | Loaded intel: 235 machine locations 13682 | -5/Factory | Loaded intel: 25 terminal locations 13731 | -5/Factory | Manually triggered Chute Trap 13731 | -5/Factory | Sucked down chute 13731 | -5/Factory | Entered Waste 13731 | -5/Waste | The area was eerily silent 13736 | -5/Waste | 1 allies followed down the chute 13783 | -5/Waste | Build established: Hacker-Scout 13819 | -5/Waste | Discovered new exit (range 14) 13830 | -5/Waste | Identified exit to Factory 13831 | -5/Waste | Entered Factory 13833 | -5/Factory | Loaded intel: 304 machine locations 13834 | -5/Factory | Loaded intel: 26 terminal locations 13929 | -5/Factory | Scrapoid reinforcements arrived 13949 | -5/Factory | Discovered exit to Factory (range 18) 14001 | -5/Factory | Entered Upper Caves 14002 | -5/Upper Caves | Identified exit to Upper Caves 14023 | -5/Upper Caves | Acquired the password to a Derelict Tinkerer's latest research 14098 | -5/Upper Caves | Entered another Upper Caves area 14286 | -5/Upper Caves | Learned location of 1 exit from Factory 14324 | -5/Upper Caves | Discovered new exit (range 20) 14336 | -5/Upper Caves | Identified exit to Warlord 14337 | -5/Upper Caves | Entered Warlord 14345 | -5/Warlord | Discovered new exit (range 20) 14396 | -5/Warlord | Rebuked by Warlord 14410 | -5/Warlord | Opened Warlord's prototype stash 14415 | -5/Warlord | Warlord's base attacked by MAIN.C 14415 | -5/Warlord | Found System Mapper 14419 | -5/Warlord | Found Exp. Phase Shifter 14520 | -5/Warlord | Found Prototype Launcher 14520 | -5/Warlord | Identified Vortex Catalyst Activator 14523 | -5/Warlord | Found Prototype Energy Cannon 14523 | -5/Warlord | Identified Vortex Driver 14533 | -5/Warlord | Found Vortex Driver 14628 | -5/Warlord | Opened side exit 14765 | -5/Warlord | Warlord forces counterattacked 15090 | -5/Warlord | Warlord base infiltrated, sounded retreat 15100 | -5/Warlord | Spotted Executioner 15147 | -5/Warlord | Lost 7 allies 15171 | -5/Warlord | Spotted Striker 15213 | -5/Warlord | Spotted Striker 15271 | -5/Warlord | Spotted Striker 15314 | -5/Warlord | Spotted Executioner 15327 | -5/Warlord | Spotted B-75 Beast 15327 | -5/Warlord | Spotted B-86 Titan 15344 | -5/Warlord | Identified exit to Proximity Caves 15344 | -5/Warlord | Entered Proximity Caves 15346 | -4/Proximity Caves | Attracted the attention of an 0b10 checkpoint 15363 | -4/Proximity Caves | Lost 12 allies 15427 | -4/Proximity Caves | Entered Factory 15427 | -4/Factory | Evolved 2 slots: Propulsion x1, Utility x1 15428 | -4/Factory | Identified exit to Extension 15429 | -4/Factory | Identified exit to Research 15430 | -4/Factory | Loaded intel: 263 machine locations 15466 | -4/Factory | Spotted B-86 Titan 15480 | -4/Factory | Discovered exit to Research (range 17) 15487 | -4/Factory | Spotted B-86 Titan 15496 | -4/Factory | Manually triggered Chute Trap 15496 | -4/Factory | Sucked down chute 15496 | -4/Factory | Entered Waste 15511 | -4/Waste | EMP discharged 15516 | -4/Waste | Spotted C-40 Crusher 15517 | -4/Waste | Spotted C-40 Crusher 15525 | -4/Waste | Spotted C-40 Crusher 15541 | -4/Waste | Spotted C-40 Crusher 15542 | -4/Waste | Destroyed C-40 Crusher 15542 | -4/Waste | Destroyed C-40 Crusher 15549 | -4/Waste | Spotted C-40 Crusher 15562 | -4/Waste | Spotted C-40 Crusher 15611 | -4/Waste | EMP discharged 15611 | -4/Waste | System corruption reached 10% 15619 | -4/Waste | Discovered new exit (range 12) 15627 | -4/Waste | Identified exit to Factory 15629 | -4/Waste | Entered Factory 15630 | -4/Factory | Loaded intel: 289 machine locations 15715 | -4/Factory | Fabricated Q-thruster (x2) 15773 | -4/Factory | Identified exit to Upper Caves 15790 | -4/Factory | System Mapper fried by hacking feedback 15867 | -4/Factory | Entered Upper Caves 15871 | -4/Upper Caves | Found DCF Scrap (15 items) 15967 | -4/Upper Caves | Learned location of 1 exit from Proximity Caves 15970 | -4/Upper Caves | Discovered new exit (range 5) 15971 | -4/Upper Caves | Identified exit to Upper Caves 15972 | -4/Upper Caves | Attracted the attention of an 0b10 checkpoint 15972 | -4/Upper Caves | Entered another Upper Caves area 15976 | -4/Upper Caves | Discovered exit to Research (range 16) 16061 | -4/Upper Caves | Discovered new exit (range 12) 16065 | -4/Upper Caves | Identified exit to Zhirov 16065 | -4/Upper Caves | Entered Zhirov 16066 | -4/Zhirov | Discovered new exit (range 3) 16072 | -4/Zhirov | Met Zhirov 16091 | -4/Zhirov | Zhirov requested help retrieving the SGEMP Prototype 16096 | -4/Zhirov | Found Alien Artifact 16096 | -4/Zhirov | Identified Integrated Reactor 16096 | -4/Zhirov | Installed Integrated Reactor, increased core energy generation (+10) 16103 | -4/Zhirov | Found Alien Artifact 16110 | -4/Zhirov | Attached Rainbow Chip, gained temporary slots: Power, Propulsion, Utility, Weapon 16131 | -4/Zhirov | Identified exit to Proximity Caves 16131 | -4/Zhirov | Entered Proximity Caves 16166 | -3/Proximity Caves | Attracted the attention of an 0b10 checkpoint 16200 | -3/Proximity Caves | Crushed by falling debris 16203 | -3/Proximity Caves | Spotted B-86 Titan 16225 | -3/Proximity Caves | Entered Research 16225 | -3/Research | Evolved 2 slots: Utility x2 16226 | -3/Research | Identified exit to Armory 16228 | -3/Research | Loaded intel: 135 machine locations 16242 | -3/Research | Lost 5 parts (1p1n3u) 16306 | -3/Research | Discovered new exit (range 19) 16395 | -3/Research | Identified exit to Research 16416 | -3/Research | Lost 9 parts (3p1n3u2w) 16417 | -3/Research | Intercept squad dispatched 16418 | -3/Research | Spotted Tracker 16425 | -3/Research | Entered another Research area 16425 | -2/Research | Evolved 2 slots: Utility x2 16426 | -2/Research | Identified exit to Access 16427 | -2/Research | Loaded intel: 111 machine locations 16454 | -2/Research | Lost 4 parts (2n2u) 16612 | -2/Research | Intercept squad dispatched 16639 | -2/Research | Spotted Tracker 16640 | -2/Research | Spotted Tracker 16657 | -2/Research | Destroyed Tracker 16659 | -2/Research | Destroyed Tracker 16686 | -2/Research | Core integrity fell below 50% 16688 | -2/Research | Found Exp. Phase Shifter 16693 | -2/Research | Spotted Combat Programmer 16694 | -2/Research | Spotted Combat Programmer 16701 | -2/Research | Discovered exit to Access (range 18) 16709 | -2/Research | Spotted B-90 Cyclops 16710 | -2/Research | Discovered new exit (range 20) 16710 | -2/Research | Entered Access 16710 | -1/Access | Evolved 2 slots: Propulsion x2 16711 | -1/Access | Loaded intel: 115 machine locations 16739 | -1/Access | Lost 15 parts (1p10n3u1w) 16986 | -1/Access | Spotted B-99 Colossus 16986 | -1/Access | Spotted B-99 Colossus 16995 | -1/Access | Core integrity fell below 50% 17006 | -1/Access | Core integrity fell below 20% 17015 | -1/Access | Destroyed by P-80 Master with Gamma Rifle Last Messages --------------- 16998_ Penetrated by Slug. 16998_ Slug penetrates Reinforced Barrier. 16998_ Penetrated by Slug. 16999_ Slug penetrates Reinforced Barrier. 17001_ Adv. Terrain Scan Processor destroyed. 17001_ Penetrated by Slug. 17001_ Slug penetrates Sealed Heavy Doors. 17001_ Penetrated by Slug. 17001_ Slug penetrates Sealed Heavy Doors. 17005_ Enh. Nova Cannon destroyed. 17005_ Penetrated by Slug. 17005_ Acquired 5 matter. 17008_ Slug penetrates Sealed Heavy Doors. 17008_ Penetrated by Slug. 17008_ Slug penetrates Sealed Heavy Doors. 17008_ Penetrated by Slug. 17012_ Slug penetrates Sealed Heavy Doors. 17012_ Penetrated by Slug. 17012_ Slug penetrates Sealed Heavy Doors. 17012_ Penetrated by Slug. Map ----- +----------------------------------------------------+ | ???????????????????# # #???????????? | | ???????????????????# # #???????????? | | ???????????????????# # #???????????? | | ?????"""???????????# # """"""" #???????????? | | ?????"""S""????????# # """"""" #???????????? | | ?????""""""????????# %%+ #???????????? | | ???????????????????+ # #???????????? | | ???????????????????# # #???????????? | | ???????????????????# # #???????????? | | ???????????????????# # #???????????? | | ???????????????????# # #???????????? | | ???????????????????# ####"#########???????????? | | ???????????????????# "#?##"###########????????? | | ???????????????????# #???## #????????? | | ???????????????????# #????# #????????? | | ?????????????????### #????# #????????? | | ????????????????##"" ####?# #????????? | | ????????????????# #?# #????????? | | ????????????????# #?# #????????? | | ????????????????# #?# #????????? | | ????????????????# #?# #????????? | | ????????????????# % % %%#?# #????????? | | ????????????????# % %### #????????? | | ????????????????# p# " ######/### | | ????????????????#"""""""""p### | | ?????????????????""""""""@"#?# # | | ?????????????????""""""""""??# # | | ??????????????""""""""""??######+##### | | ?????????????????????????????# ?????????# ! | | ???????????????????""""""????# ????????# | | ???????????????????"????"????# ????"""?# | | ???????????????????"?""?"????# ?????T"?# | | ???????????????????"?"??"????# =????"""?# | | ???????????????????"????"????# ??????# ####### | | ???????????????????""""""????# ?????# #?????? | | ?????????????????????????????# ?? ## #?????? | | ?????????????????????????????# ## #?????? | | ????????????????""""""""""""?# """"" ## #?????? | | ????????????????#"" #?# """"" ## #?????? | | ????+ ??????????#"" #?# """"" ## #?????? | | ????# ?????????#"" #?# """"" ## #?????? | | ?????? !????????#T #?# """"" ?# #?????? | | ??????? ??????#"" #?# ???# #?????? | | ????????? ?????#"" #?? ?????# ####### | | ###########+#####" #####/######## | | | | | | ####################################+######## | | #????????????????????????????????????????????? | | #?????????????????????????????????????????????? | +----------------------------------------------------+ Best States ------------- Heat Dissipation 56 Energy Generation 35 Energy Capacity 370 Matter Stores 300 Matter Capacity 300 Sight Range 22 Robot Scan Range 18 Terrain Scan Range 20 Terrain Scan Density 1410 Armor Coverage 800 Resistance: TH 15 Propulsion Shielding 90 Phase Shifting 20 Evasion (%) 95 Melee Accuracy 8 Recoil Reduction 4 Offensive Hacking 52 Item Schematics ----------------- Combat Drone Bay | -6/Data Miner | Free Lgt. Regenerative Plating | -6/Data Miner | Free Cld. Nuclear Pulse Thruster | -6/Data Miner | Free Prc. Energy Filter | -6/Data Miner | Free Hvy. Proton Cannon | -6/Data Miner | Free Imp. Linear Gravjet | -6/Data Miner | Free Adv. Trap Scanner | -6/Data Miner | Free Matter Neutralizer | -6/Data Miner | Free Enh. Gauss Cannon | -6/Data Miner | Free Adv. Medium Treads | -6/Data Miner | Free Adv. Force Field | -6/Data Miner | Free Impulse Thruster Array | -6/Data Miner | Free Assault Drone Bay | -4/Zhirov | Free Exp. Heat Sink | -4/Zhirov | Free Exp. Optical Array | -4/Zhirov | Free Imp. Arc Thrower | -4/Zhirov | Free Robot Schematics ------------------ L-41 Fighter | -6/Data Miner | Free E-15 Imp | -6/Data Miner | Free B-48 Gladiator | -6/Data Miner | Free B-60 Warrior | -6/Data Miner | Free R-10 Processor | -6/Data Miner | Free M-36 Artificer | -6/Data Miner | Free Fabricated ------------ Q-thruster | x2 | -4/Factory | Preloaded Repaired ---------- Nothing Alien Tech Used ----------------- Integrated Reactor Achievements -------------- None Challenges ------------ None Game ------ Seed PoweredFrostPlatform Manual? 0 Play Time 02:04:24 Cumulative 311.7 hours Start 2025.05.26 @ 01:58:58 End 2025.05.26 @ 05:22:06 Sessions 5 Manual Loads 0 Difficulty Rogue Special Mode None Game No. 150 Rogue 87 Adventurer 16 Explorer 47 Win Type - Total 40 Types 23/5/5/1/0/1/2/1/1/1 Lore% 91 Gallery% 87 Achievement% 83 Wizard Run 0 Options --------- Layout 2 ASCII 0 Keyboard 0 Movement Mouse Keybinds 0 Fullscreen 1 Font 32/Tamsyn Map View 50x44 Zoom Use 0% Tactical HUD 1 Map Filters NONE Filters NONE Steam 1 RUN: 713ece45-bf31-4805-877c-56463d6f6613